[Event "*** Titled Tuesday Blitz"]
[Site "Chess.com"]
[Date "2019.01.01"]
[Round "3"]
[White "VerdeNotte"]
[Black "Tjktiger"]
[Result "1-0"]
[WhiteElo "2858"]
[BlackElo "2726"]
[TimeControl "180+2"]
[EndTime "13:37:05 PST"]
[Termination "VerdeNotte won by resignation"]

1. e4 {[%clk 0:03:00.5]} 1... d5 {[%clk 0:02:57.1]} 2. exd5 {[%clk 0:02:57.8]}
2... Qxd5 {[%clk 0:02:59]} 3. Nc3 {[%clk 0:02:58.7]} 3... Qd6 {[%clk 0:02:59.5]}
4. d4 {[%clk 0:02:59.5]} 4... Nf6 {[%clk 0:03:00.5]} 5. Nf3 {[%clk 0:03:00.5]}
5... g6 {[%clk 0:03:01.5]} 6. Nb5 {[%clk 0:02:57.3]} 6... Qd8 {[%clk 0:03:02]}
7. c4 {[%clk 0:02:56.3]} 7... a6 {[%clk 0:03:02.5]} 8. Nc3 {[%clk 0:02:57.5]}
8... Bg7 {[%clk 0:03:03.6]} 9. Be2 {[%clk 0:02:57.8]} 9... O-O {[%clk
0:03:04.5]} 10. O-O {[%clk 0:02:59]} 10... e6 {[%clk 0:03:03.5]} 11. Bf4 {[%clk
0:02:55.5]} 11... Nc6 {[%clk 0:03:03.7]} 12. Rc1 {[%clk 0:02:52]} 12... Re8
{[%clk 0:03:03.6]} 13. Re1 {[%clk 0:02:48.1]} 13... Nxd4 {[%clk 0:02:12.8]} 14.
Qxd4 {[%clk 0:02:46.9]} 14... Qxd4 {[%clk 0:02:13.2]} 15. Nxd4 {[%clk
0:02:48.8]} 15... e5 {[%clk 0:02:14.6]} 16. Be3 {[%clk 0:02:45.4]} 16... exd4
{[%clk 0:02:13.8]} 17. Bxd4 {[%clk 0:02:47.3]} 17... Be6 {[%clk 0:01:58.6]} 18.
b3 {[%clk 0:02:41.5]} 18... Rad8 {[%clk 0:01:55.9]} 19. Rcd1 {[%clk 0:02:41]}
19... Nh5 {[%clk 0:01:17.1]} 20. Bxg7 {[%clk 0:02:36.5]} 20... Kxg7 {[%clk
0:01:08.2]} 21. Bf3 {[%clk 0:02:31.8]} 21... c6 {[%clk 0:00:25.3]} 22. Bxh5
{[%clk 0:02:25.9]} 22... gxh5 {[%clk 0:00:25.9]} 23. f3 {[%clk 0:02:27.4]} 23...
b5 {[%clk 0:00:18.3]} 24. c5 {[%clk 0:02:18]} 24... a5 {[%clk 0:00:14.9]} 25.
Kf2 {[%clk 0:02:16.7]} 25... a4 {[%clk 0:00:14.7]} 26. b4 {[%clk 0:02:08]} 26...
a3 {[%clk 0:00:15.6]} 27. Rd6 {[%clk 0:02:02.6]} 27... Rxd6 {[%clk 0:00:15.5]}
28. cxd6 {[%clk 0:02:04.2]} 28... Rd8 {[%clk 0:00:17]} 29. Rd1 {[%clk
0:02:01.9]} 29... f5 {[%clk 0:00:14.3]} 30. Nb1 {[%clk 0:01:51.1]} 30... Ra8
{[%clk 0:00:08.8]} 31. d7 {[%clk 0:01:44]} 31... Rd8 {[%clk 0:00:09.7]} 32. Nxa3
{[%clk 0:01:43.5]} 32... Bxa2 {[%clk 0:00:05.5]} 33. Rd6 {[%clk 0:01:42.6]}
33... Kf7 {[%clk 0:00:06.1]} 34. Rxc6 {[%clk 0:01:39.7]} 34... Rxd7 {[%clk
0:00:07.5]} 35. Nxb5 {[%clk 0:01:40.6]} 35... f4 {[%clk 0:00:03.3]} 36. Rc7
{[%clk 0:01:40.4]} 36... Ke6 {[%clk 0:00:03.1]} 37. Rxd7 {[%clk 0:01:39.7]}
37... Kxd7 {[%clk 0:00:05]} 38. Nc3 {[%clk 0:01:41]} 38... Be6 {[%clk
0:00:03.8]} 39. Ne2 {[%clk 0:01:42.2]} 39... Kc6 {[%clk 0:00:04.1]} 40. Nxf4
{[%clk 0:01:43.6]} 40... Bf7 {[%clk 0:00:06]} 41. Ke3 {[%clk 0:01:42.9]} 41...
Kb5 {[%clk 0:00:07.9]} 42. Nd3 {[%clk 0:01:44.2]} 42... h4 {[%clk 0:00:07.9]}
43. Kf4 {[%clk 0:01:42.9]} 43... Bc4 {[%clk 0:00:07.7]} 44. Ke4 {[%clk
0:01:35.1]} 44... Bb3 {[%clk 0:00:04.5]} 45. f4 {[%clk 0:01:35]} 45... Bc2
{[%clk 0:00:06]} 46. Kd4 {[%clk 0:01:35]} 46... h3 {[%clk 0:00:06.6]} 47. g4
{[%clk 0:01:29.2]} 47... Bd1 {[%clk 0:00:07.3]} 48. Ne5 {[%clk 0:01:23.5]} 48...
Kxb4 {[%clk 0:00:07.4]} 49. f5 {[%clk 0:01:25]} 49... Kb5 {[%clk 0:00:04.7]} 50.
f6 {[%clk 0:01:26]} 50... Bb3 {[%clk 0:00:06.3]} 51. f7 {[%clk 0:01:27.2]} 51...
Bxf7 {[%clk 0:00:07]} 52. Nxf7 {[%clk 0:01:29.1]} 52... Kc6 {[%clk 0:00:08.6]}
53. Ng5 {[%clk 0:01:30.1]} 53... h5 {[%clk 0:00:10.1]} 54. gxh5 {[%clk
0:01:31.2]} 54... Kd7 {[%clk 0:00:11.4]} 55. h6 {[%clk 0:01:32.7]} 1-0

[Event "*** Titled Tuesday Blitz"]
[Site "Chess.com"]
[Date "2019.01.01"]
[Round "3"]
[White "VNeimer"]
[Black "joppie2"]
[Result "0-1"]
[WhiteElo "2388"]
[BlackElo "2739"]
[TimeControl "180+2"]
[EndTime "13:37:13 PST"]
[Termination "joppie2 won by resignation"]

1. Nf3 {[%clk 0:03:01.9]} 1... g6 {[%clk 0:02:58.8]} 2. h4 {[%clk 0:03:01.6]}
2... Bg7 {[%clk 0:03:00.7]} 3. h5 {[%clk 0:03:03.1]} 3... e5 {[%clk 0:03:00]} 4.
d4 {[%clk 0:03:01.5]} 4... exd4 {[%clk 0:02:59.1]} 5. h6 {[%clk 0:03:01.7]} 5...
Bf6 {[%clk 0:03:00.2]} 6. Nxd4 {[%clk 0:03:02.3]} 6... Nc6 {[%clk 0:03:01.7]} 7.
Nxc6 {[%clk 0:03:00.9]} 7... dxc6 {[%clk 0:03:03.3]} 8. Qxd8+ {[%clk 0:03:01.3]}
8... Bxd8 {[%clk 0:03:04.4]} 9. Nc3 {[%clk 0:03:02.1]} 9... Be6 {[%clk
0:03:05.5]} 10. Bf4 {[%clk 0:03:02.3]} 10... Ne7 {[%clk 0:03:05.8]} 11. e4
{[%clk 0:03:02.8]} 11... f6 {[%clk 0:03:04.7]} 12. f3 {[%clk 0:02:58.5]} 12...
g5 {[%clk 0:03:05.9]} 13. Be3 {[%clk 0:02:57.3]} 13... Ng6 {[%clk 0:03:07.1]}
14. O-O-O {[%clk 0:02:49.3]} 14... Be7 {[%clk 0:03:08.5]} 15. g3 {[%clk
0:02:43.7]} 15... Bd6 {[%clk 0:03:09.4]} 16. Rxd6 {[%clk 0:02:41.1]} 16... cxd6
{[%clk 0:03:10]} 17. f4 {[%clk 0:02:43]} 17... gxf4 {[%clk 0:03:11]} 18. gxf4
{[%clk 0:02:44.9]} 18... f5 {[%clk 0:03:12.8]} 19. Bh3 {[%clk 0:02:44.7]} 19...
O-O {[%clk 0:03:13.5]} 20. Rg1 {[%clk 0:02:29.3]} 20... Rae8 {[%clk 0:03:14]}
21. Rg5 {[%clk 0:02:26.8]} 21... c5 {[%clk 0:02:52]} 22. Bd2 {[%clk 0:02:22.8]}
22... fxe4 {[%clk 0:02:51.1]} 23. f5 {[%clk 0:02:23.4]} 23... Bc8 {[%clk
0:02:50.8]} 24. Nd5 {[%clk 0:02:17.2]} 24... Re5 {[%clk 0:02:51]} 25. fxg6
{[%clk 0:02:07.1]} 25... Rxd5 {[%clk 0:00:45.6]} 26. Rxd5 {[%clk 0:02:00]} 26...
Bxh3 {[%clk 0:00:45.1]} 27. Rxd6 {[%clk 0:01:47.2]} 27... Rf1+ {[%clk
0:00:35.5]} 28. Be1 {[%clk 0:01:48.3]} 28... hxg6 {[%clk 0:00:37.4]} 29. Kd2
{[%clk 0:01:47.9]} 29... Bf5 {[%clk 0:00:32.6]} 30. Ke2 {[%clk 0:01:36.4]} 30...
Rh1 {[%clk 0:00:33.6]} 31. Bd2 {[%clk 0:01:37.3]} 31... Rh3 {[%clk 0:00:32.3]}
32. Rd5 {[%clk 0:01:28.1]} 32... Be6 {[%clk 0:00:29.1]} 33. Re5 {[%clk 0:01:26]}
33... Bg4+ {[%clk 0:00:28.2]} 34. Kf1 {[%clk 0:01:18.6]} 34... Rh1+ {[%clk
0:00:20.9]} 35. Kg2 {[%clk 0:01:18.5]} 35... Bf3+ {[%clk 0:00:22.8]} 36. Kg3
{[%clk 0:01:18.3]} 36... Rg1+ {[%clk 0:00:24.1]} 37. Kf4 {[%clk 0:01:18.2]}
37... Rg2 {[%clk 0:00:23.9]} 38. Bc3 {[%clk 0:01:14.7]} 38... Kh7 {[%clk
0:00:21.1]} 39. Rxc5 {[%clk 0:01:14.9]} 39... Kxh6 {[%clk 0:00:20.4]} 40. Rc7
{[%clk 0:01:14.2]} 40... g5+ {[%clk 0:00:21.6]} 41. Kf5 {[%clk 0:01:12.4]} 41...
e3 {[%clk 0:00:16.2]} 42. Bg7+ {[%clk 0:01:05.6]} 42... Kh5 {[%clk 0:00:17.1]}
43. Bd4 {[%clk 0:01:07.3]} 43... Bg4+ {[%clk 0:00:16.6]} 44. Ke4 {[%clk
0:01:08.6]} 44... e2 {[%clk 0:00:16.5]} 45. Bc3 {[%clk 0:01:07.6]} 45... Rg1
{[%clk 0:00:17.3]} 46. Rxb7 {[%clk 0:01:01.8]} 46... e1=Q+ {[%clk 0:00:16.7]}
47. Bxe1 {[%clk 0:01:03.3]} 47... Rxe1+ {[%clk 0:00:18.6]} 48. Kd3 {[%clk
0:01:04.4]} 48... Bf3 {[%clk 0:00:17.8]} 49. Rxa7 {[%clk 0:01:04.5]} 49... g4
{[%clk 0:00:19.2]} 50. Rh7+ {[%clk 0:01:03.3]} 50... Kg5 {[%clk 0:00:20.2]} 51.
Rg7+ {[%clk 0:01:04.3]} 51... Kf4 {[%clk 0:00:21.8]} 52. a4 {[%clk 0:01:04.5]}
52... g3 {[%clk 0:00:22.6]} 53. a5 {[%clk 0:01:05.7]} 53... g2 {[%clk
0:00:23.6]} 54. a6 {[%clk 0:01:06.7]} 54... Bg4 {[%clk 0:00:24.6]} 55. a7 {[%clk
0:01:04]} 55... Ra1 {[%clk 0:00:26.2]} 0-1

[Event "*** Titled Tuesday Blitz"]
[Site "Chess.com"]
[Date "2019.01.01"]
[Round "3"]
[White "GhostOfGreenval"]
[Black "farzadbfd"]
[Result "1-0"]
[WhiteElo "2739"]
[BlackElo "2498"]
[TimeControl "180+2"]
[EndTime "13:37:18 PST"]
[Termination "GhostOfGreenval won on time"]

1. e4 {[%clk 0:02:57.8]} 1... e5 {[%clk 0:03:01.1]} 2. Nf3 {[%clk 0:02:58.6]}
2... Nc6 {[%clk 0:03:02.7]} 3. Bb5 {[%clk 0:03:00.3]} 3... a6 {[%clk 0:03:03.6]}
4. Ba4 {[%clk 0:03:01.5]} 4... g6 {[%clk 0:03:03.8]} 5. O-O {[%clk 0:03:01.5]}
5... Bg7 {[%clk 0:03:04.9]} 6. c3 {[%clk 0:03:01.9]} 6... d6 {[%clk 0:03:06.4]}
7. h3 {[%clk 0:02:57.8]} 7... Bd7 {[%clk 0:03:05]} 8. d4 {[%clk 0:02:56.9]} 8...
Nf6 {[%clk 0:03:06.2]} 9. Re1 {[%clk 0:02:57.6]} 9... O-O {[%clk 0:03:06.6]} 10.
d5 {[%clk 0:02:44.9]} 10... Ne7 {[%clk 0:03:05.7]} 11. Bxd7 {[%clk 0:02:46.8]}
11... Qxd7 {[%clk 0:03:07.6]} 12. c4 {[%clk 0:02:48.1]} 12... b6 {[%clk
0:03:04.8]} 13. Nc3 {[%clk 0:02:48.2]} 13... Nh5 {[%clk 0:03:02.4]} 14. Rb1
{[%clk 0:02:45.1]} 14... a5 {[%clk 0:03:03.2]} 15. Nb5 {[%clk 0:02:40.5]} 15...
h6 {[%clk 0:02:51.7]} 16. a3 {[%clk 0:02:40]} 16... Kh7 {[%clk 0:02:51.7]} 17.
b4 {[%clk 0:02:40.8]} 17... axb4 {[%clk 0:02:53.6]} 18. axb4 {[%clk 0:02:42.7]}
18... f5 {[%clk 0:02:54.1]} 19. exf5 {[%clk 0:02:40.3]} 19... Qxf5 {[%clk
0:02:55.2]} 20. Be3 {[%clk 0:02:33.6]} 20... Qd7 {[%clk 0:02:39.7]} 21. Nh4
{[%clk 0:02:13.5]} 21... Nf4 {[%clk 0:02:27.3]} 22. Qc2 {[%clk 0:02:14.3]} 22...
Nf5 {[%clk 0:02:25]} 23. Nxf5 {[%clk 0:02:11.8]} 23... Rxf5 {[%clk 0:02:25.8]}
24. Bxf4 {[%clk 0:02:07.2]} 24... exf4 {[%clk 0:02:20.3]} 25. Re6 {[%clk
0:02:03.7]} 25... Re8 {[%clk 0:01:32.7]} 26. Nxc7 {[%clk 0:01:46.7]} 26... Rc8
{[%clk 0:01:30.5]} 27. Nb5 {[%clk 0:01:29.2]} 27... Rf6 {[%clk 0:00:59.1]} 28.
Rxf6 {[%clk 0:01:20.1]} 28... Bxf6 {[%clk 0:01:01]} 29. Qe4 {[%clk 0:01:21.2]}
29... Be5 {[%clk 0:00:59.8]} 30. Rb3 {[%clk 0:01:11.8]} 30... Ra8 {[%clk
0:00:51.3]} 31. f3 {[%clk 0:01:03.4]} 31... Ra1+ {[%clk 0:00:50.4]} 32. Kh2
{[%clk 0:00:59.8]} 32... Qe7 {[%clk 0:00:25.9]} 33. Ra3 {[%clk 0:00:55.2]} 33...
Rxa3 {[%clk 0:00:16.7]} 34. Nxa3 {[%clk 0:00:57.1]} 34... Qa7 {[%clk 0:00:16.6]}
35. Nc2 {[%clk 0:00:50.8]} 35... Qa4 {[%clk 0:00:13.6]} 36. Qe2 {[%clk
0:00:41.1]} 36... h5 {[%clk 0:00:13.6]} 37. c5 {[%clk 0:00:42.1]} 37... bxc5
{[%clk 0:00:14.3]} 38. bxc5 {[%clk 0:00:44]} 38... dxc5 {[%clk 0:00:10.4]} 39.
Qxe5 {[%clk 0:00:43.3]} 39... Qxc2 {[%clk 0:00:12.1]} 40. d6 {[%clk 0:00:39.4]}
40... c4 {[%clk 0:00:10.6]} 41. d7 {[%clk 0:00:30.8]} 41... Qd2 {[%clk
0:00:04.9]} 42. Qe7+ {[%clk 0:00:31.1]} 42... Kh6 {[%clk 0:00:06.2]} 43. d8=Q
{[%clk 0:00:33]} 1-0

[Event "*** Titled Tuesday Blitz"]
[Site "Chess.com"]
[Date "2019.01.01"]
[Round "3"]
[White "Rainmond"]
[Black "IMAghasiyevKamal"]
[Result "1-0"]
[WhiteElo "2792"]
[BlackElo "2539"]
[TimeControl "180+2"]
[EndTime "13:37:23 PST"]
[Termination "Rainmond won by resignation"]

1. Nf3 {[%clk 0:02:57.1]} 1... d5 {[%clk 0:02:59.6]} 2. d4 {[%clk 0:02:58.1]}
2... Nf6 {[%clk 0:02:59.7]} 3. c4 {[%clk 0:02:59.1]} 3... e6 {[%clk 0:03:00.3]}
4. Nc3 {[%clk 0:02:59.2]} 4... Be7 {[%clk 0:02:59.9]} 5. Bf4 {[%clk 0:02:59.4]}
5... O-O {[%clk 0:02:59.3]} 6. e3 {[%clk 0:03:00.3]} 6... c5 {[%clk 0:02:57.9]}
7. dxc5 {[%clk 0:02:56.5]} 7... Bxc5 {[%clk 0:02:56.9]} 8. a3 {[%clk 0:02:57.4]}
8... Nc6 {[%clk 0:02:54.5]} 9. Rc1 {[%clk 0:02:55.9]} 9... Be7 {[%clk
0:02:47.8]} 10. Bd3 {[%clk 0:02:47]} 10... a6 {[%clk 0:02:39.8]} 11. cxd5 {[%clk
0:02:45.2]} 11... exd5 {[%clk 0:02:40.3]} 12. h3 {[%clk 0:02:44.6]} 12... Be6
{[%clk 0:02:30.2]} 13. O-O {[%clk 0:02:45.3]} 13... Rc8 {[%clk 0:02:16.1]} 14.
Ng5 {[%clk 0:02:36.2]} 14... Bd6 {[%clk 0:01:58.5]} 15. Bxd6 {[%clk 0:02:30.5]}
15... Qxd6 {[%clk 0:01:59]} 16. Bb1 {[%clk 0:02:30.5]} 16... h6 {[%clk
0:01:51.1]} 17. Nf3 {[%clk 0:02:28.2]} 17... Rfd8 {[%clk 0:01:46.9]} 18. Nd4
{[%clk 0:02:28.5]} 18... Nxd4 {[%clk 0:01:42.5]} 19. exd4 {[%clk 0:02:27.4]}
19... Qf4 {[%clk 0:01:33.2]} 20. Re1 {[%clk 0:02:24.3]} 20... Rc4 {[%clk
0:01:23.7]} 21. Ne2 {[%clk 0:02:11.6]} 21... Qg5 {[%clk 0:01:23]} 22. Kf1 {[%clk
0:02:09.6]} 22... Rdc8 {[%clk 0:01:15]} 23. Rc3 {[%clk 0:02:02.7]} 23... Ne4
{[%clk 0:01:09.7]} 24. Re3 {[%clk 0:01:57.8]} 24... Bf5 {[%clk 0:00:59]} 25. Bd3
{[%clk 0:01:50.3]} 25... R4c6 {[%clk 0:00:46]} 26. Ng1 {[%clk 0:01:40.2]} 26...
Rc1 {[%clk 0:00:27.1]} 27. Qe2 {[%clk 0:01:38.3]} 27... Qf6 {[%clk 0:00:20.7]}
28. Nf3 {[%clk 0:01:39]} 28... Bg6 {[%clk 0:00:19.9]} 29. Kg1 {[%clk 0:01:37.1]}
29... Rxe1+ {[%clk 0:00:20.6]} 30. Qxe1 {[%clk 0:01:36.6]} 30... Qb6 {[%clk
0:00:21.4]} 31. Qb1 {[%clk 0:01:28.3]} 31... Nc3 {[%clk 0:00:19.4]} 32. Qc2
{[%clk 0:01:25.3]} 32... Bxd3 {[%clk 0:00:15]} 33. Rxd3 {[%clk 0:01:24.8]} 33...
Qg6 {[%clk 0:00:12]} 34. bxc3 {[%clk 0:01:24.8]} 34... Qe4 {[%clk 0:00:13.1]}
35. Qd2 {[%clk 0:01:24.9]} 35... b5 {[%clk 0:00:13.8]} 36. Re3 {[%clk
0:01:22.6]} 36... Qb1+ {[%clk 0:00:14.8]} 37. Kh2 {[%clk 0:01:23.7]} 37... Qa1
{[%clk 0:00:15.8]} 38. Ne5 {[%clk 0:01:22.7]} 38... Qxa3 {[%clk 0:00:16.6]} 39.
Rg3 {[%clk 0:01:23.3]} 39... Qd6 {[%clk 0:00:17.6]} 40. Qd3 {[%clk 0:01:21.7]}
40... f6 {[%clk 0:00:17.1]} 41. Qg6 {[%clk 0:01:21.4]} 41... Rc7 {[%clk
0:00:16.9]} 42. Qxh6 {[%clk 0:01:22.1]} 42... a5 {[%clk 0:00:15.9]} 43. Qg6
{[%clk 0:01:17.8]} 43... a4 {[%clk 0:00:16.2]} 44. Ng4 {[%clk 0:01:15]} 44...
Kf8 {[%clk 0:00:14.1]} 45. Ne3 {[%clk 0:01:10.3]} 45... a3 {[%clk 0:00:14.5]}
46. Nf5 {[%clk 0:01:11.3]} 46... Qd7 {[%clk 0:00:15.3]} 47. Qh7 {[%clk
0:01:09.2]} 47... Qf7 {[%clk 0:00:16.2]} 48. Re3 {[%clk 0:01:06.2]} 48... a2
{[%clk 0:00:16.9]} 49. Qh8+ {[%clk 0:01:07.1]} 49... Qg8 {[%clk 0:00:18.1]} 50.
Re8+ {[%clk 0:01:07]} 50... Kxe8 {[%clk 0:00:19.4]} 51. Qxg8+ {[%clk 0:01:08.3]}
1-0

[Event "*** Titled Tuesday Blitz"]
[Site "Chess.com"]
[Date "2019.01.01"]
[Round "3"]
[White "Msb2"]
[Black "Keranke"]
[Result "1-0"]
[WhiteElo "2817"]
[BlackElo "2750"]
[TimeControl "180+2"]
[EndTime "13:37:25 PST"]
[Termination "Msb2 won by resignation"]

1. d4 {[%clk 0:03:01.9]} 1... g6 {[%clk 0:02:59.7]} 2. c4 {[%clk 0:03:01]} 2...
Bg7 {[%clk 0:03:01.1]} 3. e4 {[%clk 0:03:02.3]} 3... d6 {[%clk 0:03:01.8]} 4.
Nc3 {[%clk 0:03:03.6]} 4... Nf6 {[%clk 0:03:01.5]} 5. Be2 {[%clk 0:03:04.8]}
5... O-O {[%clk 0:03:02.7]} 6. Be3 {[%clk 0:03:06.2]} 6... e5 {[%clk 0:03:02.2]}
7. d5 {[%clk 0:03:07.8]} 7... a5 {[%clk 0:02:56.7]} 8. g4 {[%clk 0:03:03.7]}
8... Na6 {[%clk 0:02:57.1]} 9. h4 {[%clk 0:03:04.6]} 9... Nc5 {[%clk 0:02:54.1]}
10. f3 {[%clk 0:03:06.1]} 10... h5 {[%clk 0:02:52.6]} 11. g5 {[%clk 0:03:07.5]}
11... Nfd7 {[%clk 0:02:49.1]} 12. Qd2 {[%clk 0:03:07.5]} 12... f5 {[%clk
0:02:36.6]} 13. gxf6 {[%clk 0:03:09.4]} 13... Nxf6 {[%clk 0:02:32.2]} 14. O-O-O
{[%clk 0:03:09.9]} 14... Kh7 {[%clk 0:02:30.8]} 15. Nh3 {[%clk 0:03:08.3]} 15...
Bxh3 {[%clk 0:02:31.8]} 16. Rxh3 {[%clk 0:03:10.2]} 16... Ng8 {[%clk 0:02:28.8]}
17. Rg1 {[%clk 0:03:04.4]} 17... Bh6 {[%clk 0:02:27.7]} 18. Bxh6 {[%clk
0:02:55.5]} 18... Nxh6 {[%clk 0:02:29.6]} 19. Rhg3 {[%clk 0:02:57.4]} 19... Rf6
{[%clk 0:02:15.9]} 20. Nd1 {[%clk 0:02:57]} 20... Qe7 {[%clk 0:02:15.1]} 21. Nf2
{[%clk 0:02:57.4]} 21... Rg8 {[%clk 0:02:11.1]} 22. Nh3 {[%clk 0:02:57.1]} 22...
Nf7 {[%clk 0:02:12.1]} 23. Bd1 {[%clk 0:02:47.9]} 23... b6 {[%clk 0:02:11.7]}
24. Bc2 {[%clk 0:02:48.7]} 24... Kg7 {[%clk 0:01:49]} 25. f4 {[%clk 0:02:35.5]}
25... Kf8 {[%clk 0:01:23.5]} 26. f5 {[%clk 0:02:35.6]} 26... Ke8 {[%clk
0:01:21.6]} 27. fxg6 {[%clk 0:02:15.7]} 27... Nh8 {[%clk 0:01:22.3]} 28. Qh6
{[%clk 0:02:05.7]} 28... Qg7 {[%clk 0:00:56.7]} 29. Qxh5 {[%clk 0:02:02.5]}
29... Rxg6 {[%clk 0:00:52.4]} 30. Rxg6 {[%clk 0:01:35.2]} 30... Nxg6 {[%clk
0:00:54.3]} 31. Kb1 {[%clk 0:01:34.7]} 31... Qf7 {[%clk 0:00:31.6]} 32. Ng5
{[%clk 0:01:17.6]} 32... Qf2 {[%clk 0:00:20.1]} 33. Nf3 {[%clk 0:01:18.9]} 33...
Kd8 {[%clk 0:00:17.2]} 34. Qg4 {[%clk 0:00:37.3]} 34... Rf8 {[%clk 0:00:16.3]}
35. Qxg6 {[%clk 0:00:33.7]} 35... Rxf3 {[%clk 0:00:15.7]} 36. h5 {[%clk
0:00:30.2]} 36... Kc8 {[%clk 0:00:14.3]} 37. Qe8+ {[%clk 0:00:23.9]} 37... Kb7
{[%clk 0:00:14.8]} 38. Qc6+ {[%clk 0:00:25.8]} 38... Kb8 {[%clk 0:00:13.3]} 39.
Qe8+ {[%clk 0:00:13]} 39... Ka7 {[%clk 0:00:14.1]} 40. Rc1 {[%clk 0:00:11.6]}
40... Rh3 {[%clk 0:00:13]} 41. Qc8 {[%clk 0:00:11.5]} 41... Na6 {[%clk
0:00:12.9]} 42. Qxh3 {[%clk 0:00:12.2]} 42... Nb4 {[%clk 0:00:13.3]} 43. Qc3
{[%clk 0:00:12.2]} 43... Qh2 {[%clk 0:00:13.5]} 44. a3 {[%clk 0:00:13.6]} 44...
Na6 {[%clk 0:00:13.9]} 45. Qf3 {[%clk 0:00:13.8]} 45... Nc5 {[%clk 0:00:15]} 46.
Qh1 {[%clk 0:00:14]} 46... a4 {[%clk 0:00:16.9]} 1-0

[Event "*** Titled Tuesday Blitz"]
[Site "Chess.com"]
[Date "2019.01.01"]
[Round "3"]
[White "aRk_iN"]
[Black "kayamarley"]
[Result "1-0"]
[WhiteElo "2137"]
[BlackElo "1896"]
[TimeControl "180+2"]
[EndTime "13:37:25 PST"]
[Termination "aRk_iN won by resignation"]

1. e4 {[%clk 0:03:01.9]} 1... c5 {[%clk 0:03:00.4]} 2. Nf3 {[%clk 0:03:02.3]}
2... d6 {[%clk 0:03:01.4]} 3. Bb5+ {[%clk 0:03:02]} 3... Bd7 {[%clk 0:03:02]} 4.
Bxd7+ {[%clk 0:03:02.4]} 4... Qxd7 {[%clk 0:03:03.1]} 5. O-O {[%clk 0:02:45.9]}
5... Nc6 {[%clk 0:03:01.7]} 6. c3 {[%clk 0:02:12.6]} 6... Nf6 {[%clk 0:03:00.9]}
7. Re1 {[%clk 0:02:10.5]} 7... e6 {[%clk 0:02:49.2]} 8. d4 {[%clk 0:02:08.7]}
8... Be7 {[%clk 0:02:43.4]} 9. Nbd2 {[%clk 0:02:03.9]} 9... O-O {[%clk
0:02:43.3]} 10. e5 {[%clk 0:02:02.1]} 10... Nd5 {[%clk 0:02:42.7]} 11. Nf1
{[%clk 0:01:59.4]} 11... cxd4 {[%clk 0:02:41.2]} 12. cxd4 {[%clk 0:01:59]} 12...
dxe5 {[%clk 0:02:42.3]} 13. dxe5 {[%clk 0:01:55.5]} 13... Rfd8 {[%clk
0:02:41.4]} 14. Qe2 {[%clk 0:01:54.5]} 14... Rac8 {[%clk 0:02:33.8]} 15. a3
{[%clk 0:01:53.8]} 15... b5 {[%clk 0:01:53.2]} 16. Ng3 {[%clk 0:01:39.8]} 16...
b4 {[%clk 0:01:48.5]} 17. Bg5 {[%clk 0:01:34.3]} 17... bxa3 {[%clk 0:01:47.7]}
18. bxa3 {[%clk 0:01:34.4]} 18... Nc3 {[%clk 0:01:33.5]} 19. Qe3 {[%clk
0:01:28.8]} 19... Qd3 {[%clk 0:01:33.6]} 20. Bxe7 {[%clk 0:01:27.9]} 20... Nxe7
{[%clk 0:01:29.2]} 21. Qxa7 {[%clk 0:01:15]} 21... Rd7 {[%clk 0:01:15.3]} 22.
Qe3 {[%clk 0:01:13.1]} 22... Qa6 {[%clk 0:01:11.8]} 23. Ne4 {[%clk 0:01:04.9]}
23... Ned5 {[%clk 0:01:10.4]} 24. Qg5 {[%clk 0:01:02]} 24... Nxe4 {[%clk
0:01:06.2]} 25. Rxe4 {[%clk 0:01:01.7]} 25... f5 {[%clk 0:00:48.8]} 26. exf6
{[%clk 0:00:59]} 26... Nxf6 {[%clk 0:00:49.6]} 27. Re3 {[%clk 0:00:47.7]} 27...
Rdc7 {[%clk 0:00:46.2]} 28. Rae1 {[%clk 0:00:46]} 28... Rc1 {[%clk 0:00:44.3]}
29. h3 {[%clk 0:00:39.1]} 29... Rxe1+ {[%clk 0:00:39.5]} 30. Rxe1 {[%clk
0:00:40]} 30... Re8 {[%clk 0:00:33]} 31. Qc5 {[%clk 0:00:39.2]} 31... Nd5 {[%clk
0:00:27.6]} 32. Ng5 {[%clk 0:00:31.8]} 32... Nf4 {[%clk 0:00:26.6]} 33. Qe3
{[%clk 0:00:08.6]} 33... Qd6 {[%clk 0:00:18.8]} 34. Nf3 {[%clk 0:00:09]} 34...
Ng6 {[%clk 0:00:16.9]} 35. Ne5 {[%clk 0:00:09.4]} 35... Nxe5 {[%clk 0:00:17.3]}
36. Qxe5 {[%clk 0:00:10.4]} 36... Qxa3 {[%clk 0:00:18.6]} 37. Re3 {[%clk
0:00:11.8]} 37... Qc1+ {[%clk 0:00:18.6]} 38. Kh2 {[%clk 0:00:13.2]} 38... Qc6
{[%clk 0:00:19.3]} 39. Rg3 {[%clk 0:00:13.1]} 39... g6 {[%clk 0:00:19.7]} 40.
Rf3 {[%clk 0:00:13.2]} 40... Qd7 {[%clk 0:00:20.6]} 41. h4 {[%clk 0:00:12.3]}
41... Qe7 {[%clk 0:00:21.7]} 42. g3 {[%clk 0:00:13.2]} 42... Rd8 {[%clk
0:00:20.2]} 43. h5 {[%clk 0:00:14.1]} 43... gxh5 {[%clk 0:00:19.6]} 44. Qxh5
{[%clk 0:00:14.2]} 44... Qg7 {[%clk 0:00:19.8]} 45. Rf4 {[%clk 0:00:14.4]} 45...
Kh8 {[%clk 0:00:20.3]} 46. Rg4 {[%clk 0:00:15.3]} 46... Qe7 {[%clk 0:00:20.5]}
47. Qe5+ {[%clk 0:00:15.7]} 1-0